bitfinex/quotes_SOLUSD_20230120
["timestamp","ask_amount","ask_price","bid_price","bid_amount"]
[1674178608172,10.0,21.29,21.272,91.3693069]
[1674178608371,37.15,21.289,21.272,91.3693069]
[1674178608585,10.0,21.288,21.264,124.97389904]
[1674178608783,35.24,21.287,21.267,49.87595157]
[1674178609212,10.96,21.286,21.267,49.87595157]
[1674178609411,35.24,21.285,21.267,49.87595157]
[1674178609746,10.0,21.284,21.267,49.87595157]
[1674178609936,35.24,21.283,21.267,49.87595157]
[1674178610147,10.0,21.282,21.267,49.87595157]
[1674178610571,10.0,21.282,21.268,18.92]
[1674178610783,10.0,21.282,21.267,49.87595157]
[1674178612165,10.0,21.282,21.268,18.92]
[1674178613835,35.24,21.283,21.268,114.1864729]
[1674178614045,10.0,21.284,21.268,114.1864729]
[1674178614467,10.0,21.282,21.268,114.1864729]
[1674178616236,10.0,21.282,21.268,95.2664729]
[1674178616681,35.25,21.281,21.26,7.73826555]
[1674178616871,153.5881,21.281,21.255,4.33596611]
[1674178617084,0.96,21.28,21.258,16.81719904]
[1674178617294,35.25,21.279,21.256,6.46591878]
[1674178617508,10.0,21.278,21.256,6.46591878]
[1674178617721,35.25,21.277,21.256,6.46591878]
[1674178617931,10.0,21.276,21.256,6.46591878]
[1674178618154,35.26,21.275,21.256,6.46591878]
[1674178618353,35.26,21.275,21.258,10.0]
[1674178618576,35.26,21.275,21.259,26.22452486]
[1674178619216,10.0,21.276,21.259,26.22452486]
[1674178620898,10.0,21.276,21.26,7.12551827]
[1674178621090,10.0,21.276,21.261,18.92]
[1674178626028,10.0,21.278,21.261,18.92]
[1674178626777,35.25,21.277,21.261,1.92]
[1674178626979,10.0,21.276,21.261,1.92]
[1674178629829,35.26,21.275,21.261,1.92]
[1674178632041,35.26,21.275,21.256,82.96942623]
[1674178632263,113.6527,21.274,21.256,82.96942623]
[1674178632447,113.6527,21.274,21.231,169.9958836]
[1674178632448,45.26,21.273,21.248,34.95812776]
[1674178632653,17.96,21.272,21.248,17.47906388]
[1674178632868,35.26,21.271,21.242,111.4215]
[1674178633184,17.96,21.27,21.242,155.0654249]
[1674178633393,46.23,21.269,21.242,151.8914249]
[1674178633611,17.96,21.268,21.242,151.8914249]
[1674178633810,36.23,21.267,21.242,151.8914249]
[1674178634021,10.0,21.265,21.242,191.21692623]
[1674178634265,54.19,21.264,21.242,191.21692623]
[1674178634444,123.6527,21.263,21.242,191.21692623]
[1674178634777,35.28,21.262,21.243,18.43906388]
[1674178634978,113.6527,21.263,21.245,10.0]
[1674178635181,113.6527,21.263,21.246,18.92]
[1674178635390,113.6527,21.263,21.246,36.39906388]
[1674178635804,10.0,21.268,21.246,36.39906388]
[1674178635805,35.27,21.267,21.247,17.47906388]
[1674178636037,10.0,21.268,21.248,28.92]
[1674178636248,10.0,21.268,21.249,10.0]
[1674178636446,10.0,21.268,21.25,18.92]
[1674178636657,10.0,21.268,21.25,78.80400521]
[1674178636984,10.0,21.268,21.251,17.47906388]
[1674178637191,10.0,21.268,21.252,18.92]
[1674178638021,10.0,21.268,21.252,17.0]
[1674178638232,37.19,21.267,21.244,5.74422552]
[1674178638560,10.0,21.266,21.245,20.0]
[1674178638759,35.27,21.265,21.245,20.0]
[1674178639187,10.0,21.264,21.245,37.47906388]
[1674178639376,35.28,21.263,21.245,80.36899188]
[1674178639590,152.4797,21.263,21.246,18.92]
[1674178639807,10.0,21.262,21.246,18.92]
[1674178644346,10.0,21.262,21.246,36.39906388]
[1674178644558,10.0,21.264,21.247,5.50912019]
[1674178644766,10.0,21.264,21.248,18.92]
[1674178644977,10.0,21.264,21.248,36.39906388]
[1674178645196,10.0,21.264,21.249,6.92972427]
[1674178645403,10.0,21.264,21.25,18.92]
[1674178647814,10.0,21.264,21.25,16.92]
[1674178650132,10.0,21.264,21.251,0.96]
[1674178650327,10.0,21.264,21.252,0.96]
[1674178650542,10.0,21.264,21.253,0.96]
[1674178650752,10.0,21.264,21.254,0.96]
[1674178650970,10.0,21.264,21.252,0.88]
[1674178651293,10.0,21.264,21.253,0.96]
[1674178652770,35.27,21.266,21.253,0.96]
[1674178652970,10.0,21.267,21.253,0.96]
[1674178653184,10.0,21.267,21.254,0.96]
[1674178653398,10.0,21.268,21.254,0.96]
[1674178653593,10.0,21.268,21.255,0.96]
[1674178653804,10.0,21.268,21.256,0.96]
[1674178654239,10.0,21.268,21.257,0.96]
[1674178654556,10.0,21.268,21.258,0.96]
[1674178654766,10.0,21.268,21.259,0.96]
[1674178657070,10.0,21.284,21.259,0.96]
[1674178657071,35.26,21.275,21.26,0.96]
[1674178657273,123.6527,21.274,21.261,0.96]
[1674178657699,123.6527,21.274,21.262,0.96]
[1674178658325,123.6527,21.274,21.261,0.96]
[1674178658750,45.26,21.273,21.261,0.96]
[1674178659791,45.26,21.273,21.254,15.2487846]
[1674178660001,45.26,21.273,21.255,0.96]
[1674178660207,45.26,21.273,21.256,0.96]
[1674178660441,45.26,21.273,21.254,0.96]
[1674178660844,45.26,21.273,21.252,116.37763567]
[1674178661285,45.26,21.273,21.252,111.0159]
[1674178661515,10.0,21.271,21.252,111.0159]
[1674178661686,35.26,21.27,21.252,111.0159]
[1674178661897,10.0,21.269,21.252,111.0159]
[1674178662222,10.0,21.269,21.253,0.96]
[1674178662546,10.0,21.269,21.254,0.96]
[1674178663503,10.0,21.273,21.255,17.47906388]
[1674178663806,10.0,21.273,21.256,1.92]
[1674178664036,10.0,21.273,21.256,26.57454916]
[1674178664630,35.25,21.281,21.256,26.57454916]
[1674178664839,35.25,21.281,21.258,16.98779535]
[1674178665053,35.25,21.281,21.259,33.84]
[1674178665263,10.0,21.28,21.26,4.09367973]
[1674178665486,10.0,21.278,21.26,21.57274361]
[1674178665683,35.25,21.277,21.261,44.34957268]
[1674178665893,10.0,21.278,21.261,27.34957268]
[1674178666099,10.0,21.278,21.262,34.47906388]
[1674178666432,35.25,21.279,21.263,36.87812776]
[1674178666633,35.25,21.281,21.264,24.82484473]
[1674178666841,45.24,21.282,21.265,6.35410687]
[1674178667167,10.0,21.282,21.266,26.18429916]
[1674178667482,10.0,21.282,21.266,43.66336304]
[1674178667695,10.0,21.282,21.267,17.47906388]
[1674178667936,10.0,21.282,21.268,18.92]
[1674178668462,10.0,21.282,21.269,17.47906388]
[1674178668771,10.0,21.282,21.27,18.92]
[1674178669173,10.0,21.282,21.271,17.47906388]
[1674178669383,10.0,21.282,21.272,18.92]
[1674178669599,10.0,21.284,21.272,18.92]
[1674178669928,10.0,21.293,21.273,17.47906388]
[1674178670130,35.23,21.292,21.274,18.92]
[1674178670545,35.23,21.292,21.275,17.47906388]
[1674178670755,10.0,21.284,21.276,18.92]
[1674178670974,10.0,21.284,21.276,0.96]
[1674178671184,10.0,21.284,21.275,0.96]
[1674178671505,10.0,21.284,21.276,0.96]
[1674178678339,35.23,21.292,21.277,17.47906388]
[1674178678556,35.22,21.295,21.278,23.84323219]
[1674178678755,119.8781,21.294,21.279,10.0]
[1674178678966,119.8781,21.294,21.28,25.42097417]
[1674178679178,119.8781,21.294,21.28,42.90003805]
[1674178679497,119.8781,21.294,21.281,23.5315963]
[1674178679700,119.8781,21.294,21.282,18.92]
[1674178679892,119.8781,21.294,21.282,36.39906388]
[1674178680104,119.8781,21.294,21.283,17.47906388]
[1674178680340,35.22,21.295,21.284,18.92]
[1674178680534,108.3445,21.305,21.284,18.92]
[1674178680744,10.0,21.295,21.285,17.47906388]
[1674178680973,10.0,21.295,21.286,18.92]
[1674178681901,35.21,21.3,21.286,36.39906388]
[1674178682125,35.21,21.302,21.287,6.53647637]
[1674178682432,35.21,21.304,21.288,36.39906388]
[1674178682645,108.3445,21.305,21.289,25.51484815]
[1674178682968,118.3445,21.305,21.29,21.50293255]
[1674178683156,10.0,21.304,21.291,18.92]
[1674178683894,45.21,21.304,21.291,18.92]
[1674178684103,45.21,21.304,21.292,17.0]
[1674178684333,45.21,21.304,21.293,1.92]
[1674178684538,45.21,21.304,21.291,1.92]
[1674178684939,45.21,21.304,21.291,0.96]
[1674178685152,45.21,21.304,21.289,0.96]
[1674178685367,45.21,21.304,21.288,0.96]
[1674178686100,45.21,21.304,21.289,17.47906388]
[1674178686323,10.0,21.304,21.29,18.92]
[1674178686741,10.0,21.304,21.291,17.47906388]
[1674178686954,10.0,21.304,21.292,18.92]
[1674178687158,10.0,21.305,21.292,18.92]
[1674178687374,10.0,21.305,21.293,22.60352184]
[1674178687582,10.0,21.305,21.294,18.92]
[1674178687905,10.0,21.305,21.294,36.39906388]
[1674178688519,10.0,21.305,21.294,18.92]
[1674178688937,10.0,21.306,21.294,18.92]
[1674178689148,10.0,21.306,21.294,40.42129482]
[1674178690614,35.2,21.309,21.295,6.83708941]
[1674178690826,10.0,21.31,21.296,18.92]
[1674178691047,10.0,21.31,21.297,5.24979127]
[1674178691268,10.0,21.31,21.298,18.92]
[1674178691582,10.0,21.31,21.298,36.39906388]
[1674178691795,10.0,21.31,21.299,17.47906388]
[1674178691979,10.0,21.31,21.3,18.92]
[1674178692404,10.0,21.31,21.301,17.47906388]
[1674178692630,10.0,21.31,21.302,18.92]
[1674178692853,45.19,21.316,21.302,18.92]
[1674178693034,10.0,21.316,21.303,21.7286577]
[1674178693244,10.0,21.316,21.304,18.92]
[1674178693578,146.7459,21.317,21.305,7.67307314]
[1674178693789,111.5559,21.317,21.306,18.92]
[1674178693984,111.5559,21.317,21.306,36.39906388]
[1674178694200,35.17,21.328,21.307,21.52465272]
[1674178694399,114.592,21.327,21.308,25.42255457]
[1674178694605,10.0,21.325,21.308,25.42255457]
[1674178694834,35.17,21.324,21.309,17.47906388]
[1674178695048,35.17,21.324,21.31,24.57864524]
[1674178695361,10.0,21.323,21.31,36.39906388]
[1674178695560,10.0,21.321,21.31,17.47906388]
[1674178695763,35.18,21.32,21.302,5.11837473]
[1674178696000,10.0,21.319,21.303,18.43906388]
[1674178696406,10.0,21.319,21.304,17.47906388]
[1674178696621,10.0,21.319,21.305,0.96]
[1674178696936,35.18,21.32,21.306,17.47906388]
[1674178697129,10.0,21.323,21.307,26.2926313]
[1674178697344,35.17,21.324,21.308,10.0]
[1674178697551,45.17,21.326,21.309,23.82972494]
[1674178697768,10.0,21.326,21.31,0.96]
[1674178697977,35.17,21.328,21.31,18.43906388]
[1674178698185,150.9823,21.339,21.311,35.43906388]
[1674178698414,10.0,21.338,21.312,0.96]
[1674178698623,10.0,21.336,21.313,0.96]
[1674178698813,35.16,21.335,21.309,6.01686664]
[1674178699145,0.96,21.334,21.303,5.41571529]
[1674178699342,46.12,21.333,21.303,5.41571529]
[1674178699546,10.0,21.331,21.303,5.41571529]
[1674178699755,35.16,21.33,21.303,5.41571529]
[1674178699984,146.8643,21.33,21.303,5.41571529]
[1674178700196,10.0,21.329,21.304,0.96]
[1674178700505,10.0,21.327,21.305,0.96]
[1674178700728,10.0,21.325,21.306,0.96]
[1674178700927,35.17,21.324,21.306,0.96]
[1674178701144,35.17,21.324,21.306,17.96]
[1674178701356,35.17,21.324,21.307,0.96]
[1674178701671,10.0,21.323,21.307,0.96]
[1674178705880,10.0,21.323,21.306,17.0]
[1674178706087,10.0,21.323,21.306,23.37690155]
[1674178706498,10.0,21.323,21.304,5.2714259]
[1674178706934,10.0,21.323,21.305,24.71629659]
[1674178707337,10.0,21.323,21.305,60.36899188]
[1674178707546,10.0,21.323,21.306,5.69870307]
[1674178708176,10.0,21.323,21.303,44.09805824]
[1674178708177,10.0,21.321,21.304,4.61014981]
[1674178708390,10.0,21.319,21.304,4.61014981]
[1674178708809,35.18,21.318,21.3,42.889928]
[1674178709121,144.4449,21.318,21.301,7.40200416]
[1674178709338,10.0,21.317,21.301,7.40200416]
[1674178709554,35.19,21.316,21.297,4.20330233]
[1674178710288,10.0,21.315,21.297,61.57712212]
[1674178710505,35.19,21.316,21.299,10.0]
[1674178710821,10.0,21.319,21.301,10.0]
[1674178711139,10.0,21.319,21.303,7.08397719]
[1674178711323,10.0,21.319,21.304,18.92]
[1674178711533,10.0,21.319,21.304,64.83407181]
[1674178711743,10.0,21.319,21.299,10.0]
[1674178711982,35.18,21.318,21.303,17.47906388]
[1674178712176,10.0,21.319,21.303,17.47906388]
[1674178712701,35.18,21.322,21.303,17.47906388]
[1674178712925,35.18,21.322,21.304,27.0]
[1674178713129,45.17,21.325,21.305,1.92]
[1674178713332,45.17,21.325,21.305,24.02270531]
[1674178713665,45.17,21.325,21.307,4.1659075]
[1674178713864,45.17,21.325,21.308,18.92]
[1674178714373,45.17,21.325,21.308,0.96]
[1674178715530,45.17,21.325,21.309,0.96]
[1674178716371,45.17,21.325,21.307,17.0]
[1674178716575,45.17,21.325,21.308,0.96]
[1674178717329,35.17,21.325,21.31,14.21086406]
[1674178717546,35.16,21.33,21.311,18.92]
[1674178717735,45.17,21.328,21.311,18.92]
[1674178718063,35.17,21.328,21.311,18.92]
[1674178718262,114.11,21.329,21.313,17.42766557]
[1674178718468,114.11,21.329,21.314,26.51228093]
[1674178718895,114.11,21.329,21.315,5.66035514]
[1674178719102,114.11,21.329,21.316,18.92]
[1674178719325,114.11,21.329,21.316,36.39906388]
[1674178719654,114.11,21.329,21.317,5.68962807]
[1674178719863,114.11,21.329,21.318,18.92]
[1674178720182,45.17,21.328,21.318,18.92]
[1674178720789,45.16,21.333,21.318,18.92]
[1674178724679,45.16,21.333,21.318,1.92]
[1674178724888,45.16,21.333,21.314,7.59214502]
[1674178726043,45.16,21.333,21.314,25.0712089]
[1674178726273,45.16,21.333,21.315,0.96]
[1674178726482,45.16,21.333,21.316,0.96]
[1674178727095,45.16,21.333,21.316,23.6042503]
[1674178727324,45.16,21.333,21.317,25.03060749]
[1674178727521,45.16,21.333,21.318,0.96]
[1674178728166,45.16,21.333,21.312,163.762034]
[1674178728362,45.16,21.333,21.313,20.0]
[1674178729002,45.16,21.333,21.314,17.47906388]
[1674178729321,45.16,21.333,21.314,63.83220612]
[1674178729505,45.16,21.333,21.315,0.96]
[1674178729713,45.16,21.333,21.315,18.43906388]
[1674178729925,45.16,21.333,21.316,17.96]
[1674178730250,45.16,21.333,21.317,0.96]
[1674178730465,45.16,21.333,21.318,0.96]
[1674178730675,45.16,21.333,21.319,0.96]
[1674178730987,45.16,21.333,21.32,0.96]
[1674178731202,45.16,21.333,21.321,0.96]
[1674178731514,45.16,21.333,21.322,0.96]
[1674178731729,45.16,21.333,21.323,0.96]
[1674178732149,45.16,21.333,21.324,0.96]
[1674178732358,45.16,21.333,21.325,0.96]
[1674178732569,45.16,21.333,21.326,0.96]
[1674178732786,45.16,21.333,21.327,0.96]
[1674178734469,10.0,21.333,21.328,0.96]
[1674178735109,10.0,21.333,21.318,16.92]
[1674178735419,10.0,21.333,21.313,99.963134]
[1674178736053,10.0,21.333,21.315,63.83220612]
[1674178736569,10.0,21.333,21.316,17.47906388]
[1674178737004,10.0,21.333,21.316,94.46220612]
[1674178737211,10.0,21.333,21.317,0.96]
[1674178737424,10.0,21.333,21.318,0.96]
[1674178737617,10.0,21.333,21.319,0.96]
[1674178737833,10.0,21.333,21.32,0.96]
[1674178738146,10.0,21.333,21.321,0.96]
[1674178738363,10.0,21.333,21.322,0.96]
[1674178738553,10.0,21.333,21.323,0.96]
[1674178738763,10.0,21.333,21.324,0.96]
[1674178738985,10.0,21.333,21.318,4.37735754]
[1674178739217,35.16,21.332,21.318,4.37735754]
[1674178739393,10.0,21.331,21.318,4.37735754]
[1674178740147,10.0,21.331,21.319,0.96]
[1674178740356,10.0,21.331,21.32,0.96]
[1674178740558,10.0,21.331,21.321,0.96]
[1674178740784,10.0,21.331,21.322,0.96]
[1674178741092,10.0,21.331,21.323,0.96]
[1674178741506,35.16,21.332,21.324,0.96]
[1674178741709,10.0,21.333,21.325,0.96]
[1674178742126,45.15,21.339,21.326,0.96]
[1674178742348,143.3702,21.35,21.326,0.96]
[1674178742540,143.3702,21.35,21.327,18.43906388]
[1674178742755,10.0,21.339,21.328,17.0]
[1674178742997,10.0,21.339,21.329,1.92]
[1674178743410,35.14,21.348,21.329,1.92]
[1674178743837,35.14,21.348,21.329,24.47175985]
[1674178744050,10.0,21.347,21.33,21.88368931]
[1674178744259,35.14,21.346,21.331,1.92]
[1674178744672,10.0,21.345,21.331,1.92]
[1674178744885,35.14,21.344,21.331,1.92]
[1674178745618,10.0,21.343,21.324,10.0]
[1674178745828,10.0,21.343,21.323,4.69815663]
[1674178746032,10.0,21.339,21.324,17.47906388]
[1674178746244,45.15,21.339,21.322,4.85624111]
[1674178746471,45.15,21.339,21.322,24.85624111]
[1674178746995,45.15,21.339,21.323,17.47906388]
[1674178747319,35.15,21.339,21.325,10.0]
[1674178747504,10.0,21.343,21.326,24.02404982]
[1674178747822,35.15,21.342,21.327,7.92448088]
[1674178748037,35.15,21.342,21.328,26.35605133]
[1674178748244,35.15,21.342,21.329,7.00595214]
[1674178748441,35.15,21.342,21.33,18.92]
[1674178750159,10.0,21.343,21.33,18.92]
[1674178750482,35.15,21.342,21.33,18.92]
[1674178750966,10.0,21.339,21.33,1.92]
[1674178751173,10.0,21.339,21.328,17.47906388]
[1674178751389,35.15,21.338,21.316,35.19]
[1674178751601,35.15,21.338,21.313,4.07201483]
[1674178751810,35.15,21.338,21.313,21.55107871]
[1674178752015,10.0,21.337,21.313,21.55107871]
[1674178752230,35.15,21.336,21.313,21.55107871]
[1674178752441,145.0093,21.336,21.313,21.55107871]
[1674178752671,10.0,21.335,21.314,17.47906388]
[1674178752862,35.16,21.334,21.314,17.47906388]
[1674178753090,10.0,21.333,21.314,17.47906388]
[1674178753284,10.0,21.331,21.315,26.11006892]
[1674178753494,35.16,21.33,21.314,17.47906388]
[1674178753720,35.16,21.33,21.312,7.16682077]
[1674178753935,10.0,21.329,21.312,7.16682077]
[1674178754132,35.17,21.328,21.312,7.16682077]
[1674178754550,35.17,21.328,21.305,34.16]
[1674178754878,35.17,21.328,21.306,4.08877293]
[1674178755073,35.17,21.328,21.298,17.47906388]
[1674178755074,10.0,21.327,21.299,33.7]
[1674178755282,35.17,21.326,21.3,7.27357186]
[1674178755909,10.0,21.325,21.3,7.27357186]
[1674178756119,35.17,21.324,21.302,6.83128924]
[1674178756344,35.17,21.324,21.303,18.92]
[1674178756563,10.0,21.323,21.304,17.96]
[1674178756774,35.18,21.322,21.305,0.96]
[1674178756978,10.0,21.321,21.306,0.96]
[1674178757186,35.18,21.32,21.307,0.96]
[1674178757596,10.0,21.319,21.308,0.96]
[1674178758030,10.0,21.319,21.309,0.96]
[1674178758242,10.0,21.319,21.31,0.96]
[1674178758769,10.0,21.319,21.304,5.25080246]
[1674178758959,35.18,21.318,21.298,4.52134964]
[1674178759173,146.0106,21.318,21.298,4.52134964]
[1674178759817,254.7261,21.318,21.298,4.52134964]
[1674178760035,10.0,21.317,21.291,134.73816388]
[1674178760237,35.19,21.316,21.292,4.32994838]
[1674178760439,35.19,21.316,21.293,18.92]
[1674178760651,10.0,21.315,21.292,4.32994838]
[1674178760850,35.19,21.314,21.288,5.86033983]
[1674178761066,17.96,21.313,21.282,7.59697851]
[1674178761289,36.15,21.312,21.282,7.59697851]
[1674178761593,17.96,21.311,21.282,7.59697851]
[1674178761804,36.16,21.31,21.282,7.59697851]
[1674178762012,10.96,21.309,21.282,7.59697851]
[1674178762332,35.2,21.308,21.282,7.59697851]
[1674178762554,150.2372,21.308,21.282,7.59697851]
[1674178762969,10.0,21.307,21.282,7.59697851]
[1674178763185,35.2,21.306,21.282,7.59697851]
[1674178763587,10.0,21.305,21.283,7.7054958]
[1674178763910,35.21,21.304,21.283,7.7054958]
[1674178764135,10.0,21.303,21.285,4.68302611]
[1674178764330,10.0,21.303,21.286,18.92]
[1674178767081,10.0,21.303,21.285,4.68302611]
[1674178767487,35.21,21.302,21.282,52.51]
[1674178767910,10.0,21.301,21.283,5.49773929]
[1674178768535,10.0,21.301,21.284,18.92]
[1674178770444,35.21,21.3,21.284,18.92]
[1674178770654,10.0,21.299,21.284,18.92]
[1674178770867,35.21,21.302,21.284,18.92]
[1674178771263,10.0,21.301,21.284,18.92]
[1674178772331,35.21,21.3,21.284,18.92]
[1674178772549,10.0,21.301,21.284,18.92]
[1674178775793,35.21,21.304,21.284,18.92]
[1674178775991,150.2372,21.308,21.285,35.24]
[1674178776204,115.0372,21.308,21.286,5.96277904]
[1674178776411,115.0372,21.308,21.288,15.55857607]
[1674178776627,150.2372,21.308,21.289,23.97771843]
[1674178777159,109.9486,21.307,21.291,4.55834431]
[1674178777491,109.9486,21.307,21.292,18.92]
[1674178777690,109.9486,21.307,21.292,17.42]
[1674178777905,10.0,21.306,21.293,0.96]
[1674178778227,10.0,21.306,21.294,0.96]
[1674178779906,109.9486,21.307,21.294,0.96]
[1674178780121,109.9486,21.307,21.295,0.96]
[1674178780541,109.9486,21.307,21.296,0.96]
[1674178780732,109.9486,21.307,21.297,0.96]
[1674178781060,109.9486,21.307,21.292,16.46]
[1674178781274,45.2,21.306,21.287,5.33232228]
[1674178781677,10.0,21.305,21.287,5.33232228]
[1674178781896,35.21,21.304,21.287,5.33232228]
[1674178782221,10.0,21.303,21.287,5.33232228]
[1674178782430,35.21,21.302,21.287,5.33232228]
[1674178782619,35.21,21.304,21.289,10.0]
[1674178782835,109.9486,21.307,21.29,26.63183299]
[1674178783576,145.1486,21.307,21.29,26.63183299]
[1674178783785,109.9486,21.307,21.29,26.63183299]
[1674178783998,109.9486,21.307,21.291,7.20025052]
[1674178784195,109.9486,21.307,21.293,10.0]
[1674178784414,109.9486,21.307,21.294,0.96]
[1674178784726,35.19,21.312,21.296,10.0]
[1674178784941,10.0,21.316,21.297,26.12878325]
[1674178785148,10.0,21.314,21.297,25.16878325]
[1674178785357,10.0,21.314,21.298,0.96]
[1674178785562,10.0,21.314,21.299,0.96]
[1674178785772,10.0,21.314,21.3,0.96]
[1674178786008,10.0,21.314,21.301,0.96]
[1674178786204,10.0,21.314,21.302,0.96]
[1674178786416,10.0,21.314,21.303,0.96]
[1674178786625,10.0,21.314,21.304,0.96]
[1674178790422,10.0,21.314,21.303,0.96]
[1674178790634,35.19,21.313,21.303,0.96]
[1674178790816,10.0,21.312,21.303,0.96]
[1674178791027,10.0,21.312,21.304,0.96]
[1674178791261,10.0,21.312,21.305,0.96]
[1674178791657,10.0,21.312,21.306,0.96]
[1674178792180,35.19,21.315,21.307,0.96]
[1674178792402,35.18,21.32,21.308,0.96]
[1674178792824,35.18,21.32,21.309,0.96]
[1674178793153,35.18,21.32,21.31,0.96]
[1674178794408,35.18,21.32,21.311,0.96]
[1674178794925,35.18,21.32,21.303,7.85713701]
[1674178795128,35.18,21.32,21.304,17.0]
[1674178795346,114.5292,21.324,21.304,17.0]
[1674178795347,35.19,21.317,21.304,17.0]
[1674178795565,10.0,21.316,21.304,17.0]
[1674178796522,10.0,21.316,21.305,1.92]
[1674178799771,35.19,21.315,21.305,1.92]
[1674178800090,10.0,21.314,21.305,1.92]
[1674178801567,35.19,21.315,21.305,1.92]
[1674178801758,35.18,21.322,21.305,1.92]
[1674178803048,35.18,21.32,21.305,1.92]
[1674178803351,35.19,21.317,21.296,166.15077133]
[1674178803541,10.0,21.316,21.296,120.25006429]
[1674178803751,35.19,21.315,21.296,120.25006429]
[1674178804402,10.0,21.314,21.296,120.25006429]
[1674178804612,35.19,21.313,21.296,115.4455]
[1674178804817,35.19,21.313,21.297,4.76922793]
[1674178805247,151.6655,21.315,21.298,36.18]
[1674178805433,116.4755,21.315,21.3,4.9282938]
[1674178805643,116.4755,21.315,21.301,18.92]
[1674178806836,108.7155,21.318,21.303,7.87678554]
[1674178807132,108.7155,21.318,21.304,18.92]
[1674178811336,10.0,21.317,21.304,18.92]
[1674178813853,10.0,21.317,21.301,51.1149209]
[1674178814063,10.0,21.315,21.298,7.01445212]
[1674178814694,10.0,21.315,21.299,4.73241952]
[1674178815110,35.19,21.316,21.3,7.37173954]
[1674178815436,10.0,21.317,21.301,51.1149209]
[1674178815647,10.0,21.317,21.303,6.27448819]
[1674178815863,10.0,21.317,21.304,18.92]
[1674178817761,108.7155,21.318,21.305,7.68330544]
[1674178817968,109.1418,21.324,21.304,70.0349209]
[1674178817969,45.17,21.328,21.306,54.12]
[1674178818163,10.0,21.328,21.309,10.0]
[1674178818375,10.0,21.328,21.311,5.05505518]
[1674178818583,35.15,21.337,21.312,18.92]
[1674178818795,10.0,21.336,21.312,18.92]
[1674178819010,35.16,21.335,21.313,54.08403424]
[1674178819209,10.0,21.334,21.314,24.35884686]
[1674178819424,35.16,21.333,21.314,24.35884686]
[1674178819743,10.0,21.332,21.314,24.35884686]
[1674178819947,35.16,21.331,21.314,24.35884686]
[1674178822487,35.17,21.328,21.314,24.35884686]
[1674178824588,35.16,21.331,21.314,24.35884686]
[1674178824798,10.0,21.327,21.314,18.92]
[1674178825009,10.0,21.327,21.314,23.13573094]
[1674178826053,159.4568,21.329,21.314,23.13573094]
[1674178826265,124.2868,21.329,21.314,73.00403424]
[1674178826583,35.16,21.333,21.316,10.0]